[Event "Titled Tuesday Blitz February 15 Early 2022"]
[White "Pourkashiyan, Atousa"]
[Black "Gozzoli, Yannick"]
[WhiteFideId "12502014"]
[BlackFideId "616915"]
[WhiteElo "2247"]
[BlackElo "2609"]
[Result "0-1"]
[Round "05"]
[TimeControl "180+1"]
[Date "2022.02.15"]
[WhiteClock "0:00:11"]
[BlackClock "0:01:20"]

1. e4 {[%clk 0:03:00]}  Nf6 {[%clk 0:02:59]} 2. e5 {[%clk 0:03:01]}  Nd5 {[%clk 0:02:59]} 3. d4 {[%clk 0:03:01]}  d6 {[%clk 0:03:00]} 4. Nf3 {[%clk 0:03:01]}  g6 {[%clk 0:03:00]} 5. c4 {[%clk 0:02:59]}  Nb6 {[%clk 0:03:00]} 6. Be2 {[%clk 0:02:59]}  Bg7 {[%clk 0:02:59]} 7. O-O {[%clk 0:02:57]}  O-O {[%clk 0:03:00]} 8. exd6 {[%clk 0:02:54]}  cxd6 {[%clk 0:03:00]} 9. Nc3 {[%clk 0:02:50]}  Nc6 {[%clk 0:02:58]} 10. Be3 {[%clk 0:02:43]}  Bg4 {[%clk 0:02:58]} 11. b3 {[%clk 0:02:33]}  d5 {[%clk 0:02:58]} 12. c5 {[%clk 0:02:32]}  Nc8 {[%clk 0:02:58]} 13. Rb1 {[%clk 0:02:26]}  e6 {[%clk 0:02:50]} 14. b4 {[%clk 0:02:23]}  a6 {[%clk 0:02:49]} 15. a4 {[%clk 0:02:21]}  N8e7 {[%clk 0:02:47]} 16. b5 {[%clk 0:02:18]}  axb5 {[%clk 0:02:47]} 17. axb5 {[%clk 0:02:19]}  Na5 {[%clk 0:02:37]} 18. Bg5 {[%clk 0:01:41]}  h6 {[%clk 0:02:29]} 19. Bxe7 {[%clk 0:01:39]}  Qxe7 {[%clk 0:02:30]} 20. Re1 {[%clk 0:01:39]}  Bxf3 {[%clk 0:02:27]} 21. Bxf3 {[%clk 0:01:38]}  Qf6 {[%clk 0:02:28]} 22. Ne2 {[%clk 0:01:30]}  Nc4 {[%clk 0:02:26]} 23. Qd3 {[%clk 0:01:14]}  Ra3 {[%clk 0:02:19]} 24. Rb3 {[%clk 0:01:14]}  Rfa8 {[%clk 0:02:17]} 25. c6 {[%clk 0:00:58]}  bxc6 {[%clk 0:02:06]} 26. bxc6 {[%clk 0:00:55]}  Qd8 {[%clk 0:02:06]} 27. Rc1 {[%clk 0:00:46]}  Qc7 {[%clk 0:01:58]} 28. h4 {[%clk 0:00:30]}  h5 {[%clk 0:01:53]} 29. Qd1 {[%clk 0:00:20]}  Qxc6 {[%clk 0:01:45]} 30. Rxa3 {[%clk 0:00:17]}  Rxa3 {[%clk 0:01:44]} 31. Qc2 {[%clk 0:00:11]}  Qa6 {[%clk 0:01:33]} 32. Qb1 {[%clk 0:00:11]}  Qa7 {[%clk 0:01:30]} 33. Qb5 {[%clk 0:00:10]}  Bxd4 {[%clk 0:01:22]} 34. Nxd4 {[%clk 0:00:10]}  Qxd4 {[%clk 0:01:23]} 35. Qe8+ {[%clk 0:00:09]}  Kg7 {[%clk 0:01:23]} 36. Rb1 {[%clk 0:00:10]}  Ra1 {[%clk 0:01:22]} 37. Rxa1 {[%clk 0:00:10]}  Qxa1+ {[%clk 0:01:22]} 38. Kh2 {[%clk 0:00:10]}  Qd4 {[%clk 0:01:21]} 39. g3 {[%clk 0:00:11]}  Qxf2+ {[%clk 0:01:20]} 40. Bg2 {[%clk 0:00:11]}  Ne3 {[%clk 0:01:20]} 0-1


[Site "https://www.chess.com"]

[Event "Titled Tuesday Blitz February 15 Early 2022"]
[White "Qashashvili, Alexandre"]
[Black "Vargas Pereda, Jesus Manue"]
[WhiteFideId "13600842"]
[BlackFideId "5115710"]
[WhiteElo "2316"]
[BlackElo "1768"]
[Result "1-0"]
[Round "05"]
[TimeControl "180+1"]
[Date "2022.02.15"]
[WhiteClock "0:01:15"]
[BlackClock "0:00:38"]

1. e4 {[%clk 0:03:00]}  c6 {[%clk 0:02:59]} 2. Nf3 {[%clk 0:03:00]}  d5 {[%clk 0:02:56]} 3. exd5 {[%clk 0:02:59]}  cxd5 {[%clk 0:02:54]} 4. d4 {[%clk 0:03:00]}  Nc6 {[%clk 0:02:51]} 5. c3 {[%clk 0:03:00]}  Bg4 {[%clk 0:02:49]} 6. Be2 {[%clk 0:02:59]}  e6 {[%clk 0:02:42]} 7. h3 {[%clk 0:03:00]}  Bxf3 {[%clk 0:02:40]} 8. Bxf3 {[%clk 0:02:59]}  Nf6 {[%clk 0:02:40]} 9. Bg5 {[%clk 0:02:58]}  Be7 {[%clk 0:02:39]} 10. Nd2 {[%clk 0:02:59]}  O-O {[%clk 0:02:32]} 11. O-O {[%clk 0:02:59]}  Nd7 {[%clk 0:02:24]} 12. Bxe7 {[%clk 0:02:45]}  Qxe7 {[%clk 0:02:18]} 13. Re1 {[%clk 0:02:46]}  Nf6 {[%clk 0:02:15]} 14. Qe2 {[%clk 0:02:45]}  Rac8 {[%clk 0:02:10]} 15. Nf1 {[%clk 0:02:44]}  Qd6 {[%clk 0:02:03]} 16. Ne3 {[%clk 0:02:44]}  Rfe8 {[%clk 0:01:58]} 17. Qd3 {[%clk 0:02:41]}  Red8 {[%clk 0:01:59]} 18. h4 {[%clk 0:02:33]}  a6 {[%clk 0:01:56]} 19. h5 {[%clk 0:02:33]}  h6 {[%clk 0:01:52]} 20. Ng4 {[%clk 0:02:29]}  Qf4 {[%clk 0:01:47]} 21. Nxf6+ {[%clk 0:02:27]}  Qxf6 {[%clk 0:01:46]} 22. Re3 {[%clk 0:02:17]}  Ne7 {[%clk 0:01:40]} 23. Rae1 {[%clk 0:02:16]}  Nf5 {[%clk 0:01:39]} 24. Re5 {[%clk 0:02:15]}  b5 {[%clk 0:01:24]} 25. a3 {[%clk 0:02:14]}  Rc4 {[%clk 0:01:20]} 26. Bd1 {[%clk 0:02:13]}  Rdc8 {[%clk 0:01:18]} 27. Bc2 {[%clk 0:02:12]}  a5 {[%clk 0:01:14]} 28. g4 {[%clk 0:02:05]}  Qg5 {[%clk 0:01:14]} 29. f3 {[%clk 0:02:05]}  b4 {[%clk 0:01:04]} 30. axb4 {[%clk 0:02:04]}  axb4 {[%clk 0:01:04]} 31. Kf1 {[%clk 0:01:40]}  bxc3 {[%clk 0:00:53]} 32. gxf5 {[%clk 0:01:39]}  cxb2 {[%clk 0:00:53]} 33. fxe6 {[%clk 0:01:27]}  Rxc2 {[%clk 0:00:49]} 34. Rxg5 {[%clk 0:01:26]}  Rc1 {[%clk 0:00:46]} 35. exf7+ {[%clk 0:01:25]}  Kxf7 {[%clk 0:00:38]} 36. Qg6+ {[%clk 0:01:15]} 1-0


[Site "https://www.chess.com"]

[Event "Titled Tuesday Blitz February 15 Early 2022"]
[White "Riehle, Marco"]
[Black "Chernomordik, Pavel"]
[WhiteFideId "12904392"]
[BlackFideId "2804530"]
[WhiteElo "2462"]
[BlackElo "2249"]
[Result "0-1"]
[Round "05"]
[TimeControl "180+1"]
[Date "2022.02.15"]
[WhiteClock "0:00:09"]
[BlackClock "0:00:07"]

1. e4 {[%clk 0:03:00]}  g6 {[%clk 0:02:59]} 2. d4 {[%clk 0:03:00]}  Bg7 {[%clk 0:02:59]} 3. c4 {[%clk 0:02:58]}  Nc6 {[%clk 0:02:57]} 4. Be3 {[%clk 0:02:57]}  e5 {[%clk 0:02:55]} 5. d5 {[%clk 0:02:55]}  Nd4 {[%clk 0:02:54]} 6. Ne2 {[%clk 0:02:54]}  c5 {[%clk 0:02:53]} 7. dxc6 {[%clk 0:02:53]}  dxc6 {[%clk 0:02:51]} 8. Nbc3 {[%clk 0:02:53]}  Be6 {[%clk 0:02:49]} 9. b3 {[%clk 0:02:48]}  Qa5 {[%clk 0:02:48]} 10. Qc1 {[%clk 0:02:43]}  O-O-O {[%clk 0:02:44]} 11. f3 {[%clk 0:02:40]}  f5 {[%clk 0:02:41]} 12. Kf2 {[%clk 0:02:37]}  Nf6 {[%clk 0:02:37]} 13. exf5 {[%clk 0:02:33]}  gxf5 {[%clk 0:02:30]} 14. Na4 {[%clk 0:02:11]}  Rhf8 {[%clk 0:02:17]} 15. Bxd4 {[%clk 0:02:10]}  exd4 {[%clk 0:02:16]} 16. Nf4 {[%clk 0:02:10]}  Bd7 {[%clk 0:02:09]} 17. Bd3 {[%clk 0:02:06]}  Bh6 {[%clk 0:02:02]} 18. g3 {[%clk 0:01:26]}  c5 {[%clk 0:02:01]} 19. Qe1 {[%clk 0:01:24]}  Qc7 {[%clk 0:01:44]} 20. Qe7 {[%clk 0:00:49]}  Bxf4 {[%clk 0:01:25]} 21. gxf4 {[%clk 0:00:40]}  Bxa4 {[%clk 0:01:20]} 22. Qxc7+ {[%clk 0:00:40]}  Kxc7 {[%clk 0:01:19]} 23. bxa4 {[%clk 0:00:41]}  Nh5 {[%clk 0:01:19]} 24. Rhe1 {[%clk 0:00:38]}  Nxf4 {[%clk 0:01:16]} 25. Rad1 {[%clk 0:00:39]}  Kd6 {[%clk 0:01:10]} 26. Kg3 {[%clk 0:00:36]}  Ne6 {[%clk 0:01:06]} 27. Rb1 {[%clk 0:00:31]}  b6 {[%clk 0:01:01]} 28. a5 {[%clk 0:00:31]}  Rg8+ {[%clk 0:00:53]} 29. Kf2 {[%clk 0:00:31]}  Nf4 {[%clk 0:00:49]} 30. Bxf5 {[%clk 0:00:30]}  Rg2+ {[%clk 0:00:40]} 31. Kf1 {[%clk 0:00:30]}  Rdg8 {[%clk 0:00:39]} 32. Bg4 {[%clk 0:00:25]}  Rxh2 {[%clk 0:00:27]} 33. axb6 {[%clk 0:00:24]}  axb6 {[%clk 0:00:25]} 34. Rxb6+ {[%clk 0:00:20]}  Kc7 {[%clk 0:00:24]} 35. Rbe6 {[%clk 0:00:18]}  Rh1+ {[%clk 0:00:22]} 36. Kf2 {[%clk 0:00:18]}  Nd3+ {[%clk 0:00:21]} 37. Ke2 {[%clk 0:00:13]}  Nxe1 {[%clk 0:00:17]} 38. Re7+ {[%clk 0:00:13]}  Kd6 {[%clk 0:00:17]} 39. Re6+ {[%clk 0:00:13]}  Kc7 {[%clk 0:00:16]} 40. Re7+ {[%clk 0:00:14]}  Kb6 {[%clk 0:00:16]} 41. Re6+ {[%clk 0:00:13]}  Ka5 {[%clk 0:00:16]} 42. a3 {[%clk 0:00:13]}  d3+ {[%clk 0:00:16]} 43. Kd2 {[%clk 0:00:12]}  Rd8 {[%clk 0:00:15]} 44. Rc6 {[%clk 0:00:11]}  Rh2+ {[%clk 0:00:11]} 45. Kd1 {[%clk 0:00:09]}  Nc2 {[%clk 0:00:10]} 46. Bc8 {[%clk 0:00:09]}  Ne3+ {[%clk 0:00:08]} 47. Kc1 {[%clk 0:00:09]}  d2+ {[%clk 0:00:08]} 48. Kb2 {[%clk 0:00:08]}  d1=Q+ {[%clk 0:00:08]} 49. Kc3 {[%clk 0:00:09]}  Rd3# {[%clk 0:00:07]} 0-1


[Site "https://www.chess.com"]

[Event "Titled Tuesday Blitz February 15 Early 2022"]
[White "Rodchenkov, Vitaly"]
[Black "Jakubowski, Krzysztof"]
[WhiteFideId "4152964"]
[BlackFideId "1112848"]
[WhiteElo "2337"]
[BlackElo "2365"]
[Result "0-1"]
[Round "05"]
[TimeControl "180+1"]
[Date "2022.02.15"]
[WhiteClock "0:00:34"]
[BlackClock "0:00:21"]

1. Nf3 {[%clk 0:03:00]}  d5 {[%clk 0:02:57]} 2. c4 {[%clk 0:03:00]}  d4 {[%clk 0:02:56]} 3. d3 {[%clk 0:02:59]}  c5 {[%clk 0:02:55]} 4. g3 {[%clk 0:02:59]}  Nc6 {[%clk 0:02:54]} 5. Bg2 {[%clk 0:02:59]}  e5 {[%clk 0:02:54]} 6. O-O {[%clk 0:02:59]}  Be7 {[%clk 0:02:49]} 7. Na3 {[%clk 0:02:57]}  Nf6 {[%clk 0:02:49]} 8. Nc2 {[%clk 0:02:57]}  O-O {[%clk 0:02:48]} 9. Rb1 {[%clk 0:02:57]}  a5 {[%clk 0:02:47]} 10. b3 {[%clk 0:02:56]}  h6 {[%clk 0:02:44]} 11. a3 {[%clk 0:02:56]}  Qc7 {[%clk 0:02:39]} 12. Bd2 {[%clk 0:02:55]}  b6 {[%clk 0:02:38]} 13. b4 {[%clk 0:02:55]}  Ra7 {[%clk 0:02:37]} 14. e3 {[%clk 0:02:48]}  Bf5 {[%clk 0:02:25]} 15. e4 {[%clk 0:02:43]}  Be6 {[%clk 0:02:21]} 16. bxc5 {[%clk 0:02:41]}  bxc5 {[%clk 0:02:19]} 17. Nh4 {[%clk 0:02:35]}  Nd7 {[%clk 0:02:03]} 18. Nf5 {[%clk 0:02:27]}  Bf6 {[%clk 0:02:02]} 19. f4 {[%clk 0:02:23]}  Kh7 {[%clk 0:01:56]} 20. Qe2 {[%clk 0:02:13]}  a4 {[%clk 0:01:52]} 21. Rb5 {[%clk 0:02:12]}  Na5 {[%clk 0:01:33]} 22. Bxa5 {[%clk 0:02:10]}  Rxa5 {[%clk 0:01:33]} 23. fxe5 {[%clk 0:02:06]}  Nxe5 {[%clk 0:01:27]} 24. Rbb1 {[%clk 0:02:01]}  Rb8 {[%clk 0:01:19]} 25. Qd2 {[%clk 0:01:42]}  Rb3 {[%clk 0:01:00]} 26. Rxb3 {[%clk 0:01:23]}  axb3 {[%clk 0:00:59]} 27. Ne1 {[%clk 0:01:21]}  Rxa3 {[%clk 0:00:50]} 28. Nxh6 {[%clk 0:01:21]}  Ra2 {[%clk 0:00:50]} 29. Qc1 {[%clk 0:01:21]}  b2 {[%clk 0:00:42]} 30. Qb1 {[%clk 0:01:21]}  Qa5 {[%clk 0:00:41]} 31. Nf5 {[%clk 0:01:17]}  Bg5 {[%clk 0:00:38]} 32. Nc2 {[%clk 0:01:16]}  Bd2 {[%clk 0:00:35]} 33. Qd1 {[%clk 0:01:14]}  g6 {[%clk 0:00:33]} 34. Nd6 {[%clk 0:01:09]}  Qc3 {[%clk 0:00:27]} 35. Nb5 {[%clk 0:00:37]}  Qxd3 {[%clk 0:00:25]} 36. Nba3 {[%clk 0:00:37]}  Be3+ {[%clk 0:00:21]} 37. Nxe3 {[%clk 0:00:35]}  Qxe3+ {[%clk 0:00:21]} 38. Kh1 {[%clk 0:00:34]}  Rxa3 {[%clk 0:00:21]} 0-1


[Site "https://www.chess.com"]

[Event "Titled Tuesday Blitz February 15 Early 2022"]
[White "Ruperez Benito, Antonio"]
[Black "Sokolovsky, Yahli"]
[WhiteFideId "22245049"]
[BlackFideId "2820242"]
[WhiteElo "2705"]
[BlackElo "2537"]
[Result "0-1"]
[Round "05"]
[TimeControl "180+1"]
[Date "2022.02.15"]
[WhiteClock "0:00:15"]
[BlackClock "0:00:14"]

1. d4 {[%clk 0:03:00]}  d5 {[%clk 0:02:59]} 2. c4 {[%clk 0:03:00]}  c6 {[%clk 0:02:59]} 3. Nc3 {[%clk 0:03:01]}  e6 {[%clk 0:03:00]} 4. Nf3 {[%clk 0:03:02]}  f5 {[%clk 0:03:00]} 5. Bf4 {[%clk 0:03:00]}  Nf6 {[%clk 0:02:59]} 6. e3 {[%clk 0:03:00]}  Be7 {[%clk 0:02:56]} 7. Qc2 {[%clk 0:03:00]}  O-O {[%clk 0:02:56]} 8. Bd3 {[%clk 0:03:00]}  Nbd7 {[%clk 0:02:56]} 9. h3 {[%clk 0:02:57]}  Ne4 {[%clk 0:02:57]} 10. g4 {[%clk 0:02:57]}  g5 {[%clk 0:02:30]} 11. Be5 {[%clk 0:02:51]}  Nxe5 {[%clk 0:01:28]} 12. Nxe5 {[%clk 0:02:49]}  Bf6 {[%clk 0:01:15]} 13. O-O-O {[%clk 0:02:40]}  Qa5 {[%clk 0:01:15]} 14. Bxe4 {[%clk 0:02:37]}  fxe4 {[%clk 0:01:14]} 15. f4 {[%clk 0:02:29]}  Bxe5 {[%clk 0:01:01]} 16. fxe5 {[%clk 0:02:00]}  Bd7 {[%clk 0:01:01]} 17. h4 {[%clk 0:01:58]}  gxh4 {[%clk 0:01:00]} 18. Rxh4 {[%clk 0:01:59]}  Be8 {[%clk 0:01:00]} 19. Rdh1 {[%clk 0:01:58]}  Bg6 {[%clk 0:01:01]} 20. Ne2 {[%clk 0:01:55]}  Rf2 {[%clk 0:00:58]} 21. R4h2 {[%clk 0:01:55]}  Raf8 {[%clk 0:00:58]} 22. b3 {[%clk 0:01:40]}  Rxh2 {[%clk 0:00:37]} 23. Rxh2 {[%clk 0:01:15]}  Rf1+ {[%clk 0:00:38]} 24. Kb2 {[%clk 0:01:15]}  Qe1 {[%clk 0:00:38]} 25. cxd5 {[%clk 0:01:05]}  exd5 {[%clk 0:00:35]} 26. e6 {[%clk 0:00:50]}  Be8 {[%clk 0:00:14]} 27. e7 {[%clk 0:00:25]}  b5 {[%clk 0:00:15]} 28. Rg2 {[%clk 0:00:19]}  b4 {[%clk 0:00:14]} 29. Nc1 {[%clk 0:00:16]}  Qxe3 {[%clk 0:00:15]} 30. Rd2 {[%clk 0:00:15]}  Qc3+ {[%clk 0:00:13]} 31. Qxc3 {[%clk 0:00:16]}  bxc3+ {[%clk 0:00:14]} 32. Kxc3 {[%clk 0:00:15]}  Rxc1+ {[%clk 0:00:15]} 33. Kb4 {[%clk 0:00:16]}  Rg1 {[%clk 0:00:15]} 34. Kc5 {[%clk 0:00:15]}  Rxg4 {[%clk 0:00:15]} 35. Kd6 {[%clk 0:00:16]}  e3 {[%clk 0:00:14]} 36. Re2 {[%clk 0:00:16]}  Re4 {[%clk 0:00:15]} 37. b4 {[%clk 0:00:17]}  h5 {[%clk 0:00:13]} 38. Kc7 {[%clk 0:00:14]}  Rxe7+ {[%clk 0:00:14]} 39. Kd8 {[%clk 0:00:15]}  Re4 {[%clk 0:00:14]} 0-1


[Site "https://www.chess.com"]

[Event "Titled Tuesday Blitz February 15 Early 2022"]
[White "Sahil, Tickoo"]
[Black "Clawitter, Craig"]
[WhiteFideId "5019710"]
[BlackFideId "2023105"]
[WhiteElo "2099"]
[BlackElo "2127"]
[Result "0-1"]
[Round "05"]
[TimeControl "180+1"]
[Date "2022.02.15"]
[WhiteClock "0:00:11"]
[BlackClock "0:00:37"]

1. d4 {[%clk 0:02:53]}  e6 {[%clk 0:02:58]} 2. Bf4 {[%clk 0:02:49]}  Nf6 {[%clk 0:02:58]} 3. e3 {[%clk 0:02:48]}  b6 {[%clk 0:02:58]} 4. Qf3 {[%clk 0:02:47]}  d5 {[%clk 0:02:54]} 5. Nd2 {[%clk 0:02:46]}  Bd6 {[%clk 0:02:51]} 6. Bd3 {[%clk 0:02:44]}  Bxf4 {[%clk 0:02:49]} 7. Qxf4 {[%clk 0:02:44]}  Qd6 {[%clk 0:02:47]} 8. Qxd6 {[%clk 0:02:40]}  cxd6 {[%clk 0:02:48]} 9. c3 {[%clk 0:02:29]}  Ba6 {[%clk 0:02:41]} 10. Bxa6 {[%clk 0:02:27]}  Nxa6 {[%clk 0:02:42]} 11. Ngf3 {[%clk 0:02:27]}  Ke7 {[%clk 0:02:31]} 12. O-O {[%clk 0:02:23]}  Ne4 {[%clk 0:02:31]} 13. Rfd1 {[%clk 0:02:20]}  h6 {[%clk 0:02:20]} 14. h3 {[%clk 0:02:17]}  Rhc8 {[%clk 0:02:07]} 15. Kf1 {[%clk 0:02:15]}  Rc6 {[%clk 0:02:05]} 16. a4 {[%clk 0:02:13]}  Rac8 {[%clk 0:01:56]} 17. Nxe4 {[%clk 0:01:58]}  dxe4 {[%clk 0:01:55]} 18. Nd2 {[%clk 0:01:59]}  f5 {[%clk 0:01:42]} 19. Ke2 {[%clk 0:01:57]}  Nc7 {[%clk 0:01:37]} 20. f3 {[%clk 0:01:52]}  exf3+ {[%clk 0:01:36]} 21. gxf3 {[%clk 0:01:52]}  Nd5 {[%clk 0:01:34]} 22. h4 {[%clk 0:01:48]}  g6 {[%clk 0:01:12]} 23. Rg1 {[%clk 0:01:44]}  Kf6 {[%clk 0:01:05]} 24. Kd3 {[%clk 0:01:39]}  R6c7 {[%clk 0:00:59]} 25. Rg2 {[%clk 0:01:33]}  Rg7 {[%clk 0:00:54]} 26. Nc4 {[%clk 0:01:23]}  Rxc4 {[%clk 0:00:48]} 27. Kxc4 {[%clk 0:00:14]}  Nxe3+ {[%clk 0:00:47]} 28. Kb5 {[%clk 0:00:14]}  Nxg2 {[%clk 0:00:47]} 29. Ka6 {[%clk 0:00:13]}  Nxh4 {[%clk 0:00:43]} 30. b4 {[%clk 0:00:11]}  Nxf3 {[%clk 0:00:37]} 0-1


[Site "https://www.chess.com"]

[Event "Titled Tuesday Blitz February 15 Early 2022"]
[White "Samadov, Read"]
[Black "Ezat, Mohamed"]
[WhiteFideId "13417444"]
[BlackFideId "10600906"]
[WhiteElo "2823"]
[BlackElo "2625"]
[Result "1-0"]
[Round "05"]
[TimeControl "180+1"]
[Date "2022.02.15"]
[WhiteClock "0:00:06"]
[BlackClock "0:00:04"]

1. d4 {[%clk 0:03:00]}  Nf6 {[%clk 0:02:32]} 2. c4 {[%clk 0:03:00]}  g6 {[%clk 0:02:32]} 3. Nc3 {[%clk 0:02:58]}  Bg7 {[%clk 0:02:32]} 4. e4 {[%clk 0:02:58]}  O-O {[%clk 0:02:32]} 5. f4 {[%clk 0:02:58]}  d6 {[%clk 0:02:32]} 6. Nf3 {[%clk 0:02:59]}  c5 {[%clk 0:02:32]} 7. d5 {[%clk 0:02:59]}  e5 {[%clk 0:02:32]} 8. fxe5 {[%clk 0:02:55]}  Ng4 {[%clk 0:02:29]} 9. Bg5 {[%clk 0:02:49]}  Qb6 {[%clk 0:02:28]} 10. Qd2 {[%clk 0:02:45]}  Nxe5 {[%clk 0:02:26]} 11. Nxe5 {[%clk 0:02:42]}  Bxe5 {[%clk 0:02:25]} 12. Be2 {[%clk 0:02:41]}  Nd7 {[%clk 0:02:15]} 13. O-O {[%clk 0:02:38]}  Bg7 {[%clk 0:02:13]} 14. Kh1 {[%clk 0:01:58]}  Ne5 {[%clk 0:02:11]} 15. Rab1 {[%clk 0:01:51]}  Bd7 {[%clk 0:02:10]} 16. a3 {[%clk 0:01:31]}  Qb3 {[%clk 0:02:00]} 17. Be7 {[%clk 0:01:27]}  Rfe8 {[%clk 0:01:55]} 18. Bxd6 {[%clk 0:01:27]}  Nxc4 {[%clk 0:01:55]} 19. Bxc4 {[%clk 0:01:25]}  Qxc4 {[%clk 0:01:55]} 20. Rbc1 {[%clk 0:00:48]}  f5 {[%clk 0:01:47]} 21. e5 {[%clk 0:00:39]}  Bxe5 {[%clk 0:01:44]} 22. Bxe5 {[%clk 0:00:40]}  Rxe5 {[%clk 0:01:43]} 23. d6 {[%clk 0:00:34]}  Qd4 {[%clk 0:01:43]} 24. Qc2 {[%clk 0:00:18]}  Bc6 {[%clk 0:01:30]} 25. Rcd1 {[%clk 0:00:16]}  Qg4 {[%clk 0:01:26]} 26. Kg1 {[%clk 0:00:14]}  Rd8 {[%clk 0:01:20]} 27. Rd2 {[%clk 0:00:13]}  Re6 {[%clk 0:01:11]} 28. Rfd1 {[%clk 0:00:11]}  Qf4 {[%clk 0:01:09]} 29. Qb3 {[%clk 0:00:08]}  c4 {[%clk 0:01:09]} 30. Qb4 {[%clk 0:00:04]}  Qe3+ {[%clk 0:00:58]} 31. Kf1 {[%clk 0:00:04]}  Qe5 {[%clk 0:00:27]} 32. Qxc4 {[%clk 0:00:04]}  Kf8 {[%clk 0:00:21]} 33. Re2 {[%clk 0:00:04]}  Qxh2 {[%clk 0:00:05]} 34. Qxe6 {[%clk 0:00:04]}  Qh1+ {[%clk 0:00:04]} 35. Kf2 {[%clk 0:00:05]}  Qxg2+ {[%clk 0:00:05]} 36. Ke1 {[%clk 0:00:05]}  Qg1+ {[%clk 0:00:05]} 37. Kd2 {[%clk 0:00:06]}  Qd4+ {[%clk 0:00:03]} 38. Kc1 {[%clk 0:00:06]}  Be4 {[%clk 0:00:03]} 39. Qe7+ {[%clk 0:00:06]}  Kg8 {[%clk 0:00:04]} 40. Qxd8+ {[%clk 0:00:06]} 1-0


[Site "https://www.chess.com"]

[Event "Titled Tuesday Blitz February 15 Early 2022"]
[White "Sargissyan, Sargis"]
[Black "Vokhidov, Shamsiddin"]
[WhiteFideId "13303210"]
[BlackFideId "14204223"]
[WhiteElo "2403"]
[BlackElo "2916"]
[Result "0-1"]
[Round "05"]
[TimeControl "180+1"]
[Date "2022.02.15"]
[WhiteClock "0:00:03"]
[BlackClock "0:00:15"]

1. e4 {[%clk 0:03:00]}  c5 {[%clk 0:03:00]} 2. Nf3 {[%clk 0:02:59]}  d6 {[%clk 0:03:00]} 3. d4 {[%clk 0:03:00]}  cxd4 {[%clk 0:03:01]} 4. Nxd4 {[%clk 0:03:01]}  Nf6 {[%clk 0:03:02]} 5. Nc3 {[%clk 0:03:01]}  Nc6 {[%clk 0:03:02]} 6. Bg5 {[%clk 0:03:01]}  Bd7 {[%clk 0:03:02]} 7. Qd2 {[%clk 0:02:59]}  a6 {[%clk 0:03:02]} 8. f3 {[%clk 0:02:49]}  e6 {[%clk 0:03:02]} 9. O-O-O {[%clk 0:02:48]}  Nxd4 {[%clk 0:03:02]} 10. Qxd4 {[%clk 0:02:48]}  h6 {[%clk 0:03:03]} 11. Be3 {[%clk 0:02:43]}  Bc6 {[%clk 0:03:03]} 12. e5 {[%clk 0:02:23]}  dxe5 {[%clk 0:03:01]} 13. Qxe5 {[%clk 0:02:23]}  Qb8 {[%clk 0:02:58]} 14. Bf4 {[%clk 0:02:10]}  Qxe5 {[%clk 0:02:56]} 15. Bxe5 {[%clk 0:02:10]}  Be7 {[%clk 0:02:50]} 16. Bd3 {[%clk 0:02:10]}  O-O-O {[%clk 0:02:46]} 17. Rhe1 {[%clk 0:01:57]}  h5 {[%clk 0:02:12]} 18. Ne4 {[%clk 0:01:48]}  h4 {[%clk 0:02:12]} 19. h3 {[%clk 0:01:23]}  Rh5 {[%clk 0:02:05]} 20. Nxf6 {[%clk 0:01:16]}  gxf6 {[%clk 0:02:05]} 21. Bf4 {[%clk 0:01:13]}  Bd6 {[%clk 0:01:58]} 22. Bxd6 {[%clk 0:01:01]}  Rxd6 {[%clk 0:01:59]} 23. Be4 {[%clk 0:01:01]}  Rxd1+ {[%clk 0:01:44]} 24. Kxd1 {[%clk 0:01:02]}  Bd7 {[%clk 0:01:39]} 25. f4 {[%clk 0:00:58]}  Bc6 {[%clk 0:01:25]} 26. Bxc6 {[%clk 0:00:52]}  bxc6 {[%clk 0:01:26]} 27. Ke2 {[%clk 0:00:53]}  Rh8 {[%clk 0:01:15]} 28. Rd1 {[%clk 0:00:51]}  Rg8 {[%clk 0:01:14]} 29. Kf2 {[%clk 0:00:50]}  Kc7 {[%clk 0:01:13]} 30. Rd4 {[%clk 0:00:43]}  f5 {[%clk 0:01:10]} 31. b4 {[%clk 0:00:42]}  f6 {[%clk 0:01:05]} 32. c3 {[%clk 0:00:39]}  Rg3 {[%clk 0:01:04]} 33. Rc4 {[%clk 0:00:31]}  Kd6 {[%clk 0:00:37]} 34. a4 {[%clk 0:00:25]}  e5 {[%clk 0:00:36]} 35. fxe5+ {[%clk 0:00:25]}  fxe5 {[%clk 0:00:37]} 36. Rxh4 {[%clk 0:00:19]}  Rxc3 {[%clk 0:00:36]} 37. Rh5 {[%clk 0:00:13]}  f4 {[%clk 0:00:35]} 38. Rh8 {[%clk 0:00:11]}  Kd5 {[%clk 0:00:34]} 39. h4 {[%clk 0:00:12]}  Ke4 {[%clk 0:00:30]} 40. h5 {[%clk 0:00:10]}  Rc2+ {[%clk 0:00:22]} 41. Kg1 {[%clk 0:00:10]}  Rd2 {[%clk 0:00:15]} 42. h6 {[%clk 0:00:09]}  Rd6 {[%clk 0:00:15]} 43. h7 {[%clk 0:00:09]}  Rh6 {[%clk 0:00:15]} 44. Rc8 {[%clk 0:00:08]}  Rxh7 {[%clk 0:00:15]} 45. Rxc6 {[%clk 0:00:09]}  Rb7 {[%clk 0:00:14]} 46. Rxa6 {[%clk 0:00:01]}  Rxb4 {[%clk 0:00:14]} 47. Kf2 {[%clk 0:00:02]}  Rb2+ {[%clk 0:00:14]} 48. Kg1 {[%clk 0:00:02]}  Ke3 {[%clk 0:00:15]} 49. Re6 {[%clk 0:00:02]}  e4 {[%clk 0:00:15]} 50. a5 {[%clk 0:00:03]}  Kd3 {[%clk 0:00:14]} 51. a6 {[%clk 0:00:03]}  Ra2 {[%clk 0:00:15]} 52. Kh2 {[%clk 0:00:03]}  f3 {[%clk 0:00:15]} 53. Kh1 {[%clk 0:00:03]}  f2 {[%clk 0:00:15]} 54. Rf6 {[%clk 0:00:03]}  e3 {[%clk 0:00:14]} 55. Kh2 {[%clk 0:00:04]}  Rxa6 {[%clk 0:00:14]} 56. Rxa6 {[%clk 0:00:01]}  f1=Q {[%clk 0:00:14]} 57. Ra3+ {[%clk 0:00:01]}  Kd4 {[%clk 0:00:14]} 58. Ra4+ {[%clk 0:00:02]}  Kd5 {[%clk 0:00:14]} 59. Ra5+ {[%clk 0:00:03]}  Kd6 {[%clk 0:00:15]} 60. Rh5 {[%clk 0:00:03]}  e2 {[%clk 0:00:15]} 61. Rh6+ {[%clk 0:00:02]}  Ke5 {[%clk 0:00:15]} 62. Rh5+ {[%clk 0:00:03]}  Kf6 {[%clk 0:00:15]} 63. Rh4 {[%clk 0:00:04]}  e1=Q {[%clk 0:00:15]} 64. Rh6+ {[%clk 0:00:03]}  Kg7 {[%clk 0:00:15]} 0-1


[Site "https://www.chess.com"]

[Event "Titled Tuesday Blitz February 15 Early 2022"]
[White "Selbes, Tarik"]
[Black "Vine, Elzbieta"]
[WhiteFideId "6302513"]
[BlackFideId "1119320"]
[WhiteElo "2290"]
[BlackElo "1850"]
[Result "1-0"]
[Round "05"]
[TimeControl "180+1"]
[Date "2022.02.15"]
[WhiteClock "0:01:06"]
[BlackClock "0:00:36"]

1. e4 {[%clk 0:03:00]}  c5 {[%clk 0:02:59]} 2. Nf3 {[%clk 0:03:00]}  d6 {[%clk 0:02:58]} 3. d4 {[%clk 0:03:00]}  cxd4 {[%clk 0:02:58]} 4. Nxd4 {[%clk 0:03:01]}  Nf6 {[%clk 0:02:57]} 5. Nc3 {[%clk 0:03:01]}  a6 {[%clk 0:02:57]} 6. Qf3 {[%clk 0:03:00]}  Qc7 {[%clk 0:02:47]} 7. Bg5 {[%clk 0:02:48]}  Nbd7 {[%clk 0:02:34]} 8. O-O-O {[%clk 0:02:34]}  Ne5 {[%clk 0:02:26]} 9. Qe2 {[%clk 0:02:33]}  b5 {[%clk 0:02:21]} 10. Nd5 {[%clk 0:02:04]}  Nxd5 {[%clk 0:02:19]} 11. exd5 {[%clk 0:01:32]}  Bg4 {[%clk 0:01:49]} 12. f3 {[%clk 0:01:30]}  Bh5 {[%clk 0:01:47]} 13. g4 {[%clk 0:01:23]}  Bg6 {[%clk 0:01:45]} 14. f4 {[%clk 0:01:22]}  Nd3+ {[%clk 0:01:27]} 15. Rxd3 {[%clk 0:01:20]}  Bxd3 {[%clk 0:01:27]} 16. Qxd3 {[%clk 0:01:21]}  Rc8 {[%clk 0:01:06]} 17. Bg2 {[%clk 0:01:18]}  h6 {[%clk 0:01:04]} 18. Bh4 {[%clk 0:01:15]}  g6 {[%clk 0:00:54]} 19. Re1 {[%clk 0:01:13]}  e5 {[%clk 0:00:40]} 20. dxe6 {[%clk 0:01:11]}  fxe6 {[%clk 0:00:38]} 21. Qxg6+ {[%clk 0:01:07]}  Kd7 {[%clk 0:00:36]} 22. Qxe6# {[%clk 0:01:06]} 1-0


[Site "https://www.chess.com"]